[Event "EYTCC Open U18 2022"]
[Site "Thessaloniki"]
[Date "2022.07.13"]
[Round "2.8"]
[White "Soderstrom, Adrian"]
[Black "Pasztor, Balazs"]
[Result "1-0"]
[ECO "D31"]
[WhiteElo "2292"]
[BlackElo "2336"]
[Annotator "ChessBase"]
[PlyCount "159"]
[EventDate "2022.07.12"]
[EventType "team-tourn"]
[EventCountry "GRE"]
[SourceTitle "playchess.com"]
[Source "ChessBase"]
[SourceQuality "1"]
[WhiteTeam "Sweden"]
[BlackTeam "Hungary"]
[WhiteTeamCountry "SWE"]
[BlackTeamCountry "HUN"]
[TimeControl "40/5400+30:1800+30"]

1. d4 {[%emt 0:00:03]} d5 {[%emt 0:00:10]} 2. c4 {[%emt 0:00:10]} e6 {[%emt 0:00:04]} 3. Nc3 {[%emt 0:00:13]} c6 {[%emt 0:00:06]} 4. e4 {[%emt 0:01:24]} dxe4 {[%emt 0:00:09]} 5. Nxe4 {[%emt 0:00:04]} Bb4+ {[%emt 0:00:08]} 6. Bd2 {[%emt 0:00:18]} Qxd4 {[%emt 0:00:07]} 7. Bxb4 {[%emt 0:00:10]} Qxe4+ {[%emt 0:00:07]} 8. Be2 {[%emt 0:00:24]} Na6 {[%emt 0:00:22]} 9. Ba5 {[%emt 0:00:39]} b6 {[%emt 0:00:11]} 10. Qd6 {[%emt 0:00:25]} Bd7 {[%emt 0:00:15]} 11. Bc3 {[%emt 0:00:42]} f6 {[%emt 0:00:46]} 12. Nf3 {[%emt 0:01:02]} Nh6 {[%emt 0:02:03]} 13. Rd1 {[%emt 0:07:18]} Rd8 {[%emt 0:00:32]} 14. Qa3 {[%emt 0:01:59]} Bc8 {[%emt 0:01:11]} 15. Rxd8+ {[%emt 0:00:17]} Kxd8 {[%emt 0:00:07]} 16. Qd6+ {[%emt 0:11:30]} Bd7 {[%emt 0:00:11]} 17. Nd2 {[%emt 0:07:34]} Qf5 {[%emt 0:22:42]} 18. Qa3 {[%emt 0:02:51]} Bc8 {[%emt 0:02:03]} 19. Qd6+ {[%emt 0:17:43]} Bd7 {[%emt 0:00:21]} 20. Qa3 {[%emt 0:00:32]} Bc8 {[%emt 0:00:16]} 21. O-O {[%emt 0:04:10]} c5 {[%emt 0:18:09]} 22. Bf3 {[%emt 0:05:45]} Ke7 {[%emt 0:03:35]} 23. Ne4 {[%emt 0:03:03]} Ng4 {[%emt 0:12:21]} 24. b4 {[%emt 0:09:10]} Ne5 {[%emt 0:12:08]} 25. Bxe5 {[%emt 0:01:44]} Qxe5 {[%emt 0:00:16]} 26. b5 {[%emt 0:00:14]} Nb8 {[%emt 0:04:54]} 27. Qxa7+ {[%emt 0:01:15]} Nd7 {[%emt 0:00:18]} 28. Rd1 {[%emt 0:07:52]} Qb8 {[%emt 0:02:21]} 29. Qxb8 {[%emt 0:04:38]} Nxb8 {[%emt 0:00:01]} 30. a4 {[%emt 0:00:50]} Rd8 {[%emt 0:03:49]} 31. Rxd8 {[%emt 0:01:33]} Kxd8 {[%emt 0:00:02]} 32. a5 {[%emt 0:01:49]} bxa5 {[%emt 0:05:10]} 33. Nxc5 {[%emt 0:00:04]} Kc7 {[%emt 0:01:13]} 34. Na4 {[%emt 0:01:49]} e5 {[%emt 0:07:54]} 35. c5 {[%emt 0:02:45]} Bf5 {[%emt 0:01:35]} 36. Nc3 {[%emt 0:01:44]} e4 {[%emt 0:01:11]} 37. Bd1 {[%emt 0:01:43]} Be6 {[%emt 0:01:26]} 38. Nxe4 {[%emt 0:00:39]} Bd5 {[%emt 0:00:18]} 39. Nc3 {[%emt 0:00:28]} Bc4 {[%emt 0:00:25]} 40. Ba4 {[%emt 0:00:00]} Nd7 {[%emt 0:00:00]} 41. b6+ {[%emt 0:11:39]} Nxb6 {[%emt 0:08:59]} 42. cxb6+ {[%emt 0:00:03]} Kxb6 {[%emt 0:00:07]} 43. Bc2 {[%emt 0:10:25]} Kc5 {[%emt 0:06:03]} 44. f4 {[%emt 0:04:20]} Kb4 {[%emt 0:03:11]} 45. Nb1 {[%emt 0:01:09]} a4 {[%emt 0:02:35]} 46. Kf2 {[%emt 0:01:39]} a3 {[%emt 0:05:13]} 47. Nxa3 {[%emt 0:00:10]} Kxa3 {[%emt 0:00:04]} 48. Ke3 {[%emt 0:01:58]} Kb4 {[%emt 0:00:51]} 49. Kd4 {[%emt 0:00:12]} h6 {[%emt 0:01:35]} 50. h4 {[%emt 0:01:24]} g5 {[%emt 0:04:25]} 51. fxg5 {[%emt 0:00:50]} fxg5 {[%emt 0:00:10]} 52. h5 {[%emt 0:00:34]} Be2 {[%emt 0:01:50]} 53. Bg6 {[%emt 0:00:02]} Bd1 {[%emt 0:01:15]} 54. Be8 {[%emt 0:00:39]} Be2 {[%emt 0:00:26]} 55. Bf7 {[%emt 0:00:02]} Bd1 {[%emt 0:00:33]} 56. Ke5 {[%emt 0:00:23]} Kc5 {[%emt 0:00:06]} 57. Kf6 {[%emt 0:00:22]} Kd6 {[%emt 0:00:08]} 58. Bg6 {[%emt 0:00:30]} Be2 {[%emt 0:00:47]} 59. Kg7 {[%emt 0:00:45]} Ke7 {[%emt 0:01:13]} 60. Kxh6 {[%emt 0:00:10]} Kf8 {[%emt 0:01:00]} 61. Kxg5 {[%emt 0:01:06]} Kg7 {[%emt 0:00:07]} 62. Be4 {[%emt 0:00:33]} Bf1 {[%emt 0:00:40]} 63. g3 {[%emt 0:00:12]} Be2 {[%emt 0:00:19]} 64. Bf5 {[%emt 0:00:20]} Bd1 {[%emt 0:00:13]} 65. Bg4 {[%emt 0:01:24]} Ba4 {[%emt 0:00:08]} 66. Be2 {[%emt 0:00:14]} Bc6 {[%emt 0:00:07]} 67. h6+ {[%emt 0:01:16]} Kh8 {[%emt 0:00:15]} 68. Bd3 {[%emt 0:01:00]} Ba4 {[%emt 0:00:30]} 69. Kf4 {[%emt 0:00:19]} Bd1 {[%emt 0:00:06]} 70. Be4 {[%emt 0:00:11]} Bh5 {[%emt 0:01:10]} 71. Bf3 {[%emt 0:00:06]} Be8 {[%emt 0:00:49]} 72. g4 {[%emt 0:00:02]} Kg8 {[%emt 0:01:32]} 73. g5 {[%emt 0:00:11]} Bf7 {[%emt 0:00:32]} 74. Ke5 {[%emt 0:00:05]} Bb3 {[%emt 0:00:56]} 75. Bd5+ {[%emt 0:00:15]} Bxd5 {[%emt 0:00:14]} 76. Kxd5 {[%emt 0:00:02]} Kh7 {[%emt 0:00:11]} 77. Ke6 {[%emt 0:00:08]} Kg8 {[%emt 0:00:12]} 78. g6 {[%emt 0:00:17]} Kf8 {[%emt 0:00:14]} 79. Kf6 {[%emt 0:00:06]} Kg8 {[%emt 0:00:05]} 80. g7 {[%emt 0:00:05]} 1-0

[Event "EYTCC Open U18 2022"]
[Site "Thessaloniki"]
[Date "2022.07.13"]
[Round "2.8"]
[White "Stoimenidis, Dimitrios"]
[Black "Herega, Nejc"]
[Result "*"]
[ECO "D31"]
[WhiteElo "1993"]
[BlackElo "2160"]
[Annotator "ChessBase"]
[PlyCount "33"]
[EventDate "2022.07.12"]
[EventType "team-tourn"]
[EventCountry "GRE"]
[SourceTitle "playchess.com"]
[Source "ChessBase"]
[SourceQuality "1"]
[WhiteTeam "Greece"]
[BlackTeam "Slovenia"]
[WhiteTeamCountry "GRE"]
[BlackTeamCountry "SLO"]
[TimeControl "40/5400+30:1800+30"]

1. d4 {[%emt 0:00:03]} d5 {[%emt 0:00:10]} 2. c4 {[%emt 0:00:10]} e6 {[%emt 0:00:04]} 3. Nc3 {[%emt 0:00:13]} c6 {[%emt 0:00:06]} 4. e4 {[%emt 0:01:24]} dxe4 {[%emt 0:00:09]} 5. Nxe4 {[%emt 0:00:04]} Bb4+ {[%emt 0:00:08]} 6. Bd2 {[%emt 0:00:18]} Qxd4 {[%emt 0:00:07]} 7. Bxb4 {[%emt 0:00:10]} Qxe4+ {[%emt 0:00:07]} 8. Be2 {[%emt 0:00:24]} Na6 {[%emt 0:00:22]} 9. Ba5 {[%emt 0:00:39]} b6 {[%emt 0:00:11]} 10. Qd6 {[%emt 0:00:25]} Bd7 {[%emt 0:00:15]} 11. Bc3 {[%emt 0:00:42]} f6 {[%emt 0:00:46]} 12. Nf3 {[%emt 0:01:02]} Nh6 {[%emt 0:02:03]} 13. Rd1 {[%emt 0:07:18]} Rd8 {[%emt 0:00:32]} 14. Qa3 {[%emt 0:01:59]} Bc8 {[%emt 0:01:11]} 15. Rxd8+ {[%emt 0:00:17]} Kxd8 {[%emt 0:00:07]} 16. Qd6+ {[%emt 0:11:30]} Bd7 {[%emt 0:00:11]} 17. Nd2 {[%emt 0:07:34]} *

[Event "EYTCC Open U18 2022"]
[Site "Thessaloniki"]
[Date "2022.07.13"]
[Round "2.9"]
[White "Morgunov, Marc"]
[Black "Budisavljevic, Luka"]
[Result "0-1"]
[ECO "C08"]
[WhiteElo "2376"]
[BlackElo "2511"]
[Annotator "ChessBase"]
[PlyCount "118"]
[EventDate "2022.07.12"]
[EventType "team-tourn"]
[EventCountry "GRE"]
[SourceTitle "playchess.com"]
[Source "ChessBase"]
[SourceQuality "1"]
[WhiteTeam "Austria"]
[BlackTeam "Serbia"]
[WhiteTeamCountry "AUT"]
[BlackTeamCountry "SRB"]
[TimeControl "40/5400+30:1800+30"]

1. e4 {[%emt 0:00:13]} e6 {[%emt 0:00:13]} 2. d4 {[%emt 0:00:21]} d5 {[%emt 0:00:08]} 3. Nd2 {[%emt 0:00:15]} c5 {[%emt 0:00:15]} 4. exd5 {[%emt 0:00:08]} exd5 {[%emt 0:00:11]} 5. Bb5+ {[%emt 0:00:05]} Bd7 {[%emt 0:00:09]} 6. Bxd7+ {[%emt 0:03:03]} Nxd7 {[%emt 0:00:14]} 7. Ngf3 {[%emt 0:00:26]} Ngf6 {[%emt 0:00:18]} 8. O-O {[%emt 0:01:11]} Be7 {[%emt 0:00:08]} 9. dxc5 {[%emt 0:03:21]} Nxc5 {[%emt 0:00:04]} 10. Nb3 {[%emt 0:05:22]} Nce4 {[%emt 0:00:07]} 11. Bf4 {[%emt 0:05:45]} O-O {[%emt 0:00:30]} 12. Qd3 {[%emt 0:02:57]} Nd6 {[%emt 0:02:31]} 13. Bxd6 {[%emt 0:04:28]} Bxd6 {[%emt 0:02:34]} 14. Rad1 {[%emt 0:02:06]} Qb6 {[%emt 0:02:53]} 15. Qd4 {[%emt 0:09:55]} Qc7 {[%emt 0:01:36]} 16. c3 {[%emt 0:00:35]} a5 {[%emt 0:01:56]} 17. a4 {[%emt 0:05:20]} Ra6 {[%emt 0:03:00]} 18. h3 {[%emt 0:05:27]} Rb6 {[%emt 0:05:21]} 19. Nfd2 {[%emt 0:01:30]} Bf4 {[%emt 0:06:20]} 20. Qc5 {[%emt 0:12:37]} Qxc5 {[%emt 0:06:55]} 21. Nxc5 {[%emt 0:00:03]} Rxb2 {[%emt 0:00:22]} 22. Nd3 {[%emt 0:00:05]} Rxd2 {[%emt 0:02:20]} 23. Nxf4 {[%emt 0:00:03]} Rxd1 {[%emt 0:00:56]} 24. Rxd1 {[%emt 0:00:04]} Rd8 {[%emt 0:01:37]} 25. c4 {[%emt 0:07:29]} d4 {[%emt 0:02:26]} 26. Nd5 {[%emt 0:03:12]} Kf8 {[%emt 0:03:26]} 27. Rxd4 {[%emt 0:00:53]} Nxd5 {[%emt 0:10:19]} 28. cxd5 {[%emt 0:00:18]} Ke7 {[%emt 0:00:08]} 29. Rd2 {[%emt 0:09:18]} Rb8 {[%emt 0:06:11]} 30. Rb2 {[%emt 0:05:23]} b5 {[%emt 0:02:29]} 31. axb5 {[%emt 0:02:09]} Rb6 {[%emt 0:00:18]} 32. Kf1 {[%emt 0:06:50]} Kd6 {[%emt 0:00:03]} 33. Ke2 {[%emt 0:00:04]} Kxd5 {[%emt 0:01:39]} 34. Rd2+ {[%emt 0:01:32]} Kc5 {[%emt 0:06:21]} 35. Rd7 {[%emt 0:00:04]} Re6+ {[%emt 0:02:33]} 36. Kd3 {[%emt 0:02:16]} Rf6 {[%emt 0:00:03]} 37. f3 {[%emt 0:02:42]} Kxb5 {[%emt 0:00:03]} 38. Rb7+ {[%emt 0:00:19]} Kc5 {[%emt 0:01:53]} 39. Kc3 {[%emt 0:01:39]} h5 {[%emt 0:02:57]} 40. Ra7 {[%emt 0:00:00]} Kb6 {[%emt 0:00:00]} 41. Rd7 {[%emt 0:00:33]} Kc6 {[%emt 0:02:14]} 42. Ra7 {[%emt 0:00:42]} Rf5 {[%emt 0:01:19]} 43. Kd4 {[%emt 0:01:54]} h4 {[%emt 0:06:51]} 44. Kc4 {[%emt 0:05:15]} Rf4+ {[%emt 0:06:51]} 45. Kc3 {[%emt 0:02:39]} Rf5 {[%emt 0:00:26]} 46. Kc4 {[%emt 0:00:22]} g6 {[%emt 0:00:25]} 47. Kd4 {[%emt 0:02:10]} Kd6 {[%emt 0:03:32]} 48. Ra6+ {[%emt 0:01:59]} Ke7 {[%emt 0:00:21]} 49. Ra7+ {[%emt 0:00:28]} Kf6 {[%emt 0:00:11]} 50. Ra6+ {[%emt 0:00:18]} Kg5 {[%emt 0:01:35]} 51. Ke4 {[%emt 0:02:33]} f6 {[%emt 0:00:13]} 52. Ke3 {[%emt 0:01:10]} Re5+ {[%emt 0:00:31]} 53. Kf2 {[%emt 0:00:17]} Rb5 {[%emt 0:01:20]} 54. g4 {[%emt 0:04:35]} f5 {[%emt 0:05:45]} 55. f4+ {[%emt 0:03:24]} Kxf4 {[%emt 0:01:55]} 56. Rxg6 {[%emt 0:00:03]} Rb2+ {[%emt 0:00:47]} 57. Ke1 {[%emt 0:02:01]} a4 {[%emt 0:00:57]} 58. Ra6 {[%emt 0:00:17]} Ke3 {[%emt 0:00:22]} 59. Re6+ {[%emt 0:03:47]} Kf3 {[%emt 0:00:14]} 0-1

[Event "EYTCC Open U18 2022"]
[Site "Thessaloniki"]
[Date "2022.07.13"]
[Round "2.9"]
[White "Ratnesan, Ranesh"]
[Black "Betsakou, Sofia"]
[Result "*"]
[ECO "C08"]
[WhiteElo "2269"]
[BlackElo "1412"]
[Annotator "ChessBase"]
[PlyCount "28"]
[EventDate "2022.07.12"]
[EventType "team-tourn"]
[EventCountry "GRE"]
[SourceTitle "playchess.com"]
[Source "ChessBase"]
[SourceQuality "1"]
[WhiteTeam "England"]
[BlackTeam "Greece"]
[WhiteTeamCountry "ENG"]
[BlackTeamCountry "GRE"]
[TimeControl "40/5400+30:1800+30"]

1. e4 {[%emt 0:00:13]} e6 {[%emt 0:00:13]} 2. d4 {[%emt 0:00:21]} d5 {[%emt 0:00:08]} 3. Nd2 {[%emt 0:00:15]} c5 {[%emt 0:00:15]} 4. exd5 {[%emt 0:00:08]} exd5 {[%emt 0:00:11]} 5. Bb5+ {[%emt 0:00:05]} Bd7 {[%emt 0:00:09]} 6. Bxd7+ {[%emt 0:03:03]} Nxd7 {[%emt 0:00:14]} 7. Ngf3 {[%emt 0:00:26]} Ngf6 {[%emt 0:00:18]} 8. O-O {[%emt 0:01:11]} Be7 {[%emt 0:00:08]} 9. dxc5 {[%emt 0:03:21]} Nxc5 {[%emt 0:00:04]} 10. Nb3 {[%emt 0:05:22]} Nce4 {[%emt 0:00:07]} 11. Bf4 {[%emt 0:05:45]} O-O {[%emt 0:00:30]} 12. Qd3 {[%emt 0:02:57]} Nd6 {[%emt 0:02:31]} 13. Bxd6 {[%emt 0:04:28]} Bxd6 {[%emt 0:02:34]} 14. Rad1 {[%emt 0:02:06]} Qb6 {[%emt 0:02:53]} *

[Event "EYTCC Open U18 2022"]
[Site "Thessaloniki"]
[Date "2022.07.13"]
[Round "2.10"]
[White "Tadic, Stefan"]
[Black "Kristoferitsch, Daniel"]
[Result "1/2-1/2"]
[ECO "B40"]
[WhiteElo "2356"]
[BlackElo "2312"]
[Annotator "ChessBase"]
[PlyCount "104"]
[EventDate "2022.07.12"]
[EventType "team-tourn"]
[EventCountry "GRE"]
[SourceTitle "playchess.com"]
[Source "ChessBase"]
[SourceQuality "1"]
[WhiteTeam "Serbia"]
[BlackTeam "Austria"]
[WhiteTeamCountry "SRB"]
[BlackTeamCountry "AUT"]
[TimeControl "40/5400+30:1800+30"]

1. e4 {[%emt 0:00:52]} c5 {[%emt 0:00:09]} 2. Nf3 {[%emt 0:00:52]} e6 {[%emt 0:00:11]} 3. c3 {[%emt 0:01:05]} d5 {[%emt 0:00:08]} 4. exd5 {[%emt 0:01:05]} Qxd5 {[%emt 0:00:09]} 5. d4 {[%emt 0:01:19]} Nf6 {[%emt 0:00:12]} 6. Na3 {[%emt 0:00:20]} Nc6 {[%emt 0:02:50]} 7. Nc2 {[%emt 0:03:34]} Be7 {[%emt 0:08:51]} 8. Bd3 {[%emt 0:08:11]} cxd4 {[%emt 0:01:37]} 9. cxd4 {[%emt 0:09:15]} Nb4 {[%emt 0:08:12]} 10. Nxb4 {[%emt 0:08:22]} Bxb4+ {[%emt 0:00:09]} 11. Kf1 {[%emt 0:00:00]} O-O {[%emt 0:02:27]} 12. h4 {[%emt 0:18:50]} Rd8 {[%emt 0:08:24]} 13. Qe2 {[%emt 0:03:23]} Bd7 {[%emt 0:14:25]} 14. Bg5 {[%emt 0:12:29]} Be7 {[%emt 0:05:58]} 15. Bc4 {[%emt 0:06:27]} Qd6 {[%emt 0:02:51]} 16. Ne5 {[%emt 0:02:31]} a6 {[%emt 0:08:03]} 17. Rd1 {[%emt 0:05:41]} Bb5 {[%emt 0:01:10]} 18. Rh3 {[%emt 0:00:19]} Bxc4 {[%emt 0:02:22]} 19. Nxc4 {[%emt 0:00:10]} Qc6 {[%emt 0:03:15]} 20. Ne5 {[%emt 0:01:43]} Qa4 {[%emt 0:03:10]} 21. b3 {[%emt 0:02:31]} Qb4 {[%emt 0:00:42]} 22. Nc4 {[%emt 0:01:36]} Qb5 {[%emt 0:09:02]} 23. a4 {[%emt 0:01:15]} Qc6 {[%emt 0:00:58]} 24. Ne5 {[%emt 0:00:46]} Qd5 {[%emt 0:00:15]} 25. Rg3 {[%emt 0:00:17]} Re8 {[%emt 0:03:13]} 26. Bh6 {[%emt 0:07:39]} Bf8 {[%emt 0:01:21]} 27. Rdd3 {[%emt 0:01:12]} Qe4 {[%emt 0:03:15]} 28. Qf3 {[%emt 0:01:43]} Qxf3 {[%emt 0:06:19]} 29. Rgxf3 {[%emt 0:00:02]} Be7 {[%emt 0:00:28]} 30. Bd2 {[%emt 0:01:11]} h5 {[%emt 0:02:18]} 31. Bg5 {[%emt 0:00:40]} Red8 {[%emt 0:01:09]} 32. Ke2 {[%emt 0:00:36]} Rd5 {[%emt 0:01:03]} 33. Nc4 {[%emt 0:00:31]} Rad8 {[%emt 0:00:32]} 34. Be3 {[%emt 0:00:27]} b5 {[%emt 0:00:45]} 35. axb5 {[%emt 0:00:23]} axb5 {[%emt 0:00:06]} 36. Ne5 {[%emt 0:00:07]} Rc8 {[%emt 0:01:28]} 37. Kd1 {[%emt 0:00:56]} Bd6 {[%emt 0:00:30]} 38. Bg5 {[%emt 0:00:32]} Bxe5 {[%emt 0:00:55]} 39. dxe5 {[%emt 0:00:02]} Rxd3+ {[%emt 0:00:30]} 40. Rxd3 {[%emt 0:00:00]} Nd5 {[%emt 0:00:00]} 41. Bd2 {[%emt 0:03:34]} f6 {[%emt 0:14:12]} 42. exf6 {[%emt 0:02:54]} gxf6 {[%emt 0:00:02]} 43. f3 {[%emt 0:00:20]} Kf7 {[%emt 0:02:29]} 44. g4 {[%emt 0:00:53]} Rh8 {[%emt 0:00:21]} 45. gxh5 {[%emt 0:04:58]} Rxh5 {[%emt 0:00:08]} 46. Rd4 {[%emt 0:00:15]} Kg6 {[%emt 0:01:00]} 47. Ke2 {[%emt 0:08:39]} Kf5 {[%emt 0:00:18]} 48. Bc1 {[%emt 0:03:57]} Rh8 {[%emt 0:00:24]} 49. Kf2 {[%emt 0:02:38]} Rc8 {[%emt 0:01:44]} 50. Bd2 {[%emt 0:00:07]} Rh8 {[%emt 0:05:40]} 51. Bc1 {[%emt 0:00:32]} Rc8 {[%emt 0:00:20]} 52. Bd2 {[%emt 0:00:05]} Rh8 1/2-1/2

[Event "EYTCC Open U18 2022"]
[Site "Thessaloniki"]
[Date "2022.07.13"]
[Round "2.11"]
[White "Stepanencu, Nicodim-Cosmin"]
[Black "Rozen, Eytan"]
[Result "*"]
[ECO "D85"]
[WhiteElo "2277"]
[BlackElo "2465"]
[Annotator "ChessBase"]
[PlyCount "21"]
[EventDate "2022.07.12"]
[EventType "team-tourn"]
[EventCountry "GRE"]
[SourceTitle "playchess.com"]
[Source "ChessBase"]
[SourceQuality "1"]
[WhiteTeam "Romania"]
[BlackTeam "Israel"]
[WhiteTeamCountry "ROU"]
[BlackTeamCountry "ISR"]
[TimeControl "40/5400+30:1800+30"]

1. d4 {[%emt 0:00:04]} Nf6 {[%emt 0:02:03]} 2. c4 {[%emt 0:00:09]} g6 {[%emt 0:00:34]} 3. Nc3 {[%emt 0:00:27]} d5 {[%emt 0:00:20]} 4. cxd5 {[%emt 0:01:04]} Nxd5 {[%emt 0:00:06]} 5. e4 {[%emt 0:00:09]} Nxc3 {[%emt 0:00:04]} 6. bxc3 {[%emt 0:00:06]} Bg7 {[%emt 0:00:03]} 7. Bc4 {[%emt 0:00:12]} O-O {[%emt 0:00:07]} 8. Ne2 {[%emt 0:01:05]} Nc6 {[%emt 0:00:07]} 9. Be3 {[%emt 0:04:46]} b6 {[%emt 0:00:28]} 10. Qd2 {[%emt 0:06:48]} Bb7 {[%emt 0:00:16]} 11. h4 {[%emt 0:12:28]} *

[Event "EYTCC Open U18 2022"]
[Site "Thessaloniki"]
[Date "2022.07.13"]
[Round "2.11"]
[White "Marakovits, Nico"]
[Black "Ivanovic, Marko"]
[Result "0-1"]
[ECO "D86"]
[WhiteElo "2259"]
[BlackElo "2310"]
[Annotator "ChessBase"]
[PlyCount "102"]
[EventDate "2022.07.12"]
[EventType "team-tourn"]
[EventCountry "GRE"]
[SourceTitle "playchess.com"]
[Source "ChessBase"]
[SourceQuality "1"]
[WhiteTeam "Austria"]
[BlackTeam "Serbia"]
[WhiteTeamCountry "AUT"]
[BlackTeamCountry "SRB"]
[TimeControl "40/5400+30:1800+30"]

1. d4 {[%emt 0:00:04]} Nf6 {[%emt 0:02:03]} 2. c4 {[%emt 0:00:09]} g6 {[%emt 0:00:34]} 3. Nc3 {[%emt 0:00:27]} d5 {[%emt 0:00:20]} 4. cxd5 {[%emt 0:01:04]} Nxd5 {[%emt 0:00:06]} 5. e4 {[%emt 0:00:09]} Nxc3 {[%emt 0:00:04]} 6. bxc3 {[%emt 0:00:06]} Bg7 {[%emt 0:00:03]} 7. Bc4 {[%emt 0:00:12]} O-O {[%emt 0:00:07]} 8. Ne2 {[%emt 0:01:05]} Nc6 {[%emt 0:00:07]} 9. Be3 {[%emt 0:04:46]} b6 {[%emt 0:00:28]} 10. Qd2 {[%emt 0:06:48]} Bb7 {[%emt 0:00:16]} 11. h4 {[%emt 0:12:28]} Na5 {[%emt 0:44:07]} 12. Bd3 {[%emt 0:01:15]} e5 {[%emt 0:01:23]} 13. h5 {[%emt 0:24:15]} exd4 {[%emt 0:07:14]} 14. Bxd4 {[%emt 0:01:06]} Qe7 {[%emt 0:00:38]} 15. Qe3 {[%emt 0:09:52]} Rfe8 {[%emt 0:05:57]} 16. Bxg7 {[%emt 0:05:47]} Kxg7 {[%emt 0:00:06]} 17. hxg6 {[%emt 0:00:23]} fxg6 {[%emt 0:00:13]} 18. Qd4+ {[%emt 0:04:40]} Qe5 {[%emt 0:01:14]} 19. Qd7+ {[%emt 0:00:23]} Re7 {[%emt 0:00:28]} 20. Qh3 {[%emt 0:01:00]} Kg8 {[%emt 0:05:05]} 21. f4 {[%emt 0:03:14]} Qc5 {[%emt 0:07:34]} 22. e5 {[%emt 0:02:30]} Rf8 {[%emt 0:05:54]} 23. Rd1 {[%emt 0:04:29]} Bd5 {[%emt 0:05:47]} 24. Qg3 {[%emt 0:06:58]} Bxa2 {[%emt 0:01:15]} 25. Be4 {[%emt 0:01:17]} Nc6 {[%emt 0:08:27]} 26. Bxc6 {[%emt 0:07:31]} Qxc6 {[%emt 0:00:04]} 27. O-O {[%emt 0:00:11]} Bc4 {[%emt 0:00:23]} 28. Nd4 {[%emt 0:00:25]} Qe4 {[%emt 0:00:06]} 29. Rde1 {[%emt 0:00:39]} Qd5 {[%emt 0:00:32]} 30. Rf2 {[%emt 0:00:16]} c5 {[%emt 0:00:07]} 31. Nf3 {[%emt 0:01:05]} b5 {[%emt 0:02:28]} 32. Qg5 {[%emt 0:00:33]} Qf7 {[%emt 0:02:36]} 33. Nh4 {[%emt 0:00:28]} Qg7 {[%emt 0:00:38]} 34. Re3 {[%emt 0:01:09]} Be6 {[%emt 0:00:26]} 35. g4 {[%emt 0:00:37]} b4 {[%emt 0:00:18]} 36. cxb4 {[%emt 0:00:12]} cxb4 {[%emt 0:00:03]} 37. Kh2 {[%emt 0:00:36]} Ref7 {[%emt 0:00:53]} 38. f5 {[%emt 0:00:27]} gxf5 {[%emt 0:00:12]} 39. Qxg7+ {[%emt 0:00:05]} Kxg7 {[%emt 0:00:47]} 40. gxf5 {[%emt 0:00:00]} Bxf5 {[%emt 0:00:00]} 41. e6 {[%emt 0:16:20]} Bxe6 {[%emt 0:01:17]} 42. Rg2+ {[%emt 0:00:04]} Kf6 {[%emt 0:00:20]} 43. Rf2+ {[%emt 0:00:00]} Kg5 {[%emt 0:00:51]} 44. Nf3+ {[%emt 0:08:21]} Rxf3 {[%emt 0:00:07]} 45. Rfxf3 {[%emt 0:02:02]} Rxf3 {[%emt 0:00:05]} 46. Rxf3 {[%emt 0:00:04]} a5 {[%emt 0:00:08]} 47. Re3 {[%emt 0:00:29]} Kf5 {[%emt 0:00:38]} 48. Rh3 {[%emt 0:01:15]} b3 {[%emt 0:07:19]} 49. Rxh7 {[%emt 0:02:00]} a4 {[%emt 0:00:27]} 50. Ra7 {[%emt 0:00:11]} b2 {[%emt 0:00:06]} 51. Rb7 {[%emt 0:00:23]} Bb3 {[%emt 0:00:04]} 0-1

[Event "EYTCC Open U18 2022"]
[Site "Thessaloniki"]
[Date "2022.07.13"]
[Round "2.12"]
[White "Ben Ari, Yannay"]
[Black "Antonica, Dragos-Andrei"]
[Result "*"]
[ECO "C50"]
[WhiteElo "2411"]
[BlackElo "2355"]
[Annotator "ChessBase"]
[PlyCount "20"]
[EventDate "2022.07.12"]
[EventType "team-tourn"]
[EventCountry "GRE"]
[SourceTitle "playchess.com"]
[Source "ChessBase"]
[SourceQuality "1"]
[WhiteTeam "Israel"]
[BlackTeam "Romania"]
[WhiteTeamCountry "ISR"]
[BlackTeamCountry "ROU"]
[TimeControl "40/5400+30:1800+30"]

1. e4 {[%emt 0:00:03]} e5 {[%emt 0:00:16]} 2. Nf3 {[%emt 0:00:07]} Nc6 {[%emt 0:00:14]} 3. Bc4 {[%emt 0:00:12]} Bc5 {[%emt 0:00:04]} 4. O-O {[%emt 0:00:36]} d6 {[%emt 0:00:55]} 5. d3 {[%emt 0:00:33]} Nf6 {[%emt 0:00:06]} 6. c3 {[%emt 0:01:12]} a6 {[%emt 0:00:53]} 7. Bb3 {[%emt 0:00:56]} Ba7 {[%emt 0:01:11]} 8. Re1 {[%emt 0:01:49]} h6 {[%emt 0:02:28]} 9. Nbd2 {[%emt 0:03:19]} Ng4 {[%emt 0:14:59]} 10. Re2 {[%emt 0:06:43]} g5 {[%emt 0:05:23]} *

[Event "EYTCC Open U18 2022"]
[Site "Thessaloniki"]
[Date "2022.07.13"]
[Round "2.12"]
[White "Ljepic, Andrej"]
[Black "Pilshofer, Paul"]
[Result "1-0"]
[ECO "C50"]
[WhiteElo "2234"]
[BlackElo "2223"]
[Annotator "ChessBase"]
[PlyCount "69"]
[EventDate "2022.07.12"]
[EventType "team-tourn"]
[EventCountry "GRE"]
[SourceTitle "playchess.com"]
[Source "ChessBase"]
[SourceQuality "1"]
[WhiteTeam "Serbia"]
[BlackTeam "Austria"]
[WhiteTeamCountry "SRB"]
[BlackTeamCountry "AUT"]
[TimeControl "40/5400+30:1800+30"]

1. e4 {[%emt 0:00:03]} e5 {[%emt 0:00:16]} 2. Nf3 {[%emt 0:00:07]} Nc6 {[%emt 0:00:14]} 3. Bc4 {[%emt 0:00:12]} Bc5 {[%emt 0:00:04]} 4. O-O {[%emt 0:00:36]} d6 {[%emt 0:00:55]} 5. d3 {[%emt 0:00:33]} Nf6 {[%emt 0:00:06]} 6. c3 {[%emt 0:01:12]} a6 {[%emt 0:00:53]} 7. Bb3 {[%emt 0:00:56]} Ba7 {[%emt 0:01:11]} 8. Re1 {[%emt 0:01:49]} h6 {[%emt 0:02:28]} 9. Nbd2 {[%emt 0:03:19]} Ng4 {[%emt 0:14:59]} 10. Re2 {[%emt 0:06:43]} g5 {[%emt 0:05:23]} 11. Nf1 {[%emt 0:05:58]} Qf6 {[%emt 0:19:11]} 12. h3 {[%emt 0:10:30]} Nxf2 {[%emt 0:05:00]} 13. Rxf2 {[%emt 0:00:25]} Bxf2+ {[%emt 0:02:29]} 14. Kxf2 {[%emt 0:00:15]} g4 {[%emt 0:07:54]} 15. hxg4 {[%emt 0:01:35]} Rg8 {[%emt 0:05:51]} 16. Ne3 {[%emt 0:06:19]} Ne7 {[%emt 0:02:58]} 17. Qh1 {[%emt 0:10:47]} Bd7 {[%emt 0:10:18]} 18. Qh5 {[%emt 0:08:43]} Qg7 {[%emt 0:08:36]} 19. Bd2 {[%emt 0:07:48]} Bxg4 {[%emt 0:06:05]} 20. Nxg4 {[%emt 0:02:58]} Qxg4 {[%emt 0:00:01]} 21. Bxf7+ {[%emt 0:00:30]} Kd7 {[%emt 0:00:27]} 22. Qxg4+ {[%emt 0:00:54]} Rxg4 {[%emt 0:00:00]} 23. Bh5 {[%emt 0:00:38]} Rgg8 {[%emt 0:02:59]} 24. Bxh6 {[%emt 0:00:25]} Rh8 {[%emt 0:01:01]} 25. Bg4+ {[%emt 0:00:08]} Kc6 {[%emt 0:00:09]} 26. Be3 {[%emt 0:01:41]} Rag8 {[%emt 0:01:30]} 27. Bh3 {[%emt 0:00:53]} Rg7 {[%emt 0:00:36]} 28. d4 {[%emt 0:00:29]} Ng6 {[%emt 0:01:56]} 29. d5+ {[%emt 0:01:27]} Kb5 {[%emt 0:00:00]} 30. Rc1 {[%emt 0:17:41]} Kc4 {[%emt 0:01:05]} 31. b3+ {[%emt 0:00:46]} Kb5 {[%emt 0:00:34]} 32. a4+ {[%emt 0:00:08]} Ka5 {[%emt 0:00:07]} 33. Ra1 {[%emt 0:00:06]} c5 {[%emt 0:01:12]} 34. dxc6 {[%emt 0:00:07]} bxc6 {[%emt 0:00:04]} 35. b4# {[%emt 0:00:02]} 1-0